bitfinex/quotes_SOLUSD_20230904
["timestamp","ask_amount","ask_price","bid_price","bid_amount"]
[1693865052555,3.92358737,19.277,19.27,38.47]
[1693865052762,8.09,19.282,19.272,9.131]
[1693865052964,3.92358737,19.281,19.272,9.131]
[1693865053262,12.01458737,19.281,19.272,9.131]
[1693865053462,12.01458737,19.281,19.272,3.424]
[1693865056471,12.01458737,19.281,19.272,0.809]
[1693865056781,55.0,19.28,19.272,0.809]
[1693865057074,8.092,19.278,19.272,0.809]
[1693865057575,1.57809063,19.277,19.272,0.809]
[1693865057777,9.67009063,19.277,19.272,0.809]
[1693865058076,1.68296756,19.278,19.272,0.809]
[1693865058278,2.75000804,19.281,19.272,0.809]
[1693865058658,57.75000804,19.281,19.272,0.809]
[1693865059372,8.091,19.279,19.272,0.809]
[1693865059571,2.75000804,19.278,19.272,0.809]
[1693865059873,10.84200804,19.278,19.272,0.809]
[1693865060261,10.84200804,19.278,19.27,44.178]
[1693865060262,36.98500804,19.278,19.27,38.47]
[1693865060466,55.0,19.277,19.263,5.71]
[1693865060681,10.98472706,19.276,19.267,3.424]
[1693865061571,2.89172706,19.276,19.267,3.424]
[1693865062670,8.092,19.277,19.267,3.424]
[1693865062890,1.56171427,19.276,19.267,3.424]
[1693865063370,104.1475,19.279,19.267,3.424]
[1693865063576,2.57752335,19.278,19.267,3.424]
[1693865063775,22.57752335,19.278,19.267,3.424]
[1693865063989,30.66952335,19.278,19.267,3.424]
[1693865065181,2.57752335,19.278,19.272,3.424]
[1693865065384,96.0555,19.279,19.272,3.424]
[1693865065776,1.68448679,19.279,19.272,3.424]
[1693865067783,2.9154108,19.28,19.272,3.424]
[1693865068877,11.0064108,19.28,19.272,3.424]
[1693865069075,10.5064108,19.28,19.272,3.424]
[1693865069986,10.0064108,19.28,19.272,3.424]
[1693865070774,9.5064108,19.28,19.272,3.424]
[1693865071791,8.091,19.281,19.272,3.424]
[1693865072086,8.86191796,19.28,19.272,3.424]
[1693865072283,8.091,19.28,19.272,3.424]
[1693865072476,7.591,19.28,19.272,3.424]
[1693865073679,0.58064802,19.279,19.272,3.424]
[1693865073984,7.591,19.28,19.272,3.424]
[1693865074187,0.5153061,19.279,19.272,3.424]
[1693865075281,8.091,19.279,19.272,3.424]
[1693865075480,8.091,19.279,19.272,0.809]
[1693865076297,7.591,19.279,19.272,0.809]
[1693865081187,26.137,19.283,19.272,0.809]
[1693865081388,8.091,19.281,19.272,0.809]
[1693865081588,1.62848003,19.28,19.272,0.809]
[1693865082988,9.71948003,19.28,19.272,0.809]
[1693865084099,1.62848003,19.28,19.272,0.809]
[1693865084307,1.62848003,19.281,19.272,0.809]
[1693865085103,9.71848003,19.281,19.272,0.809]
[1693865085801,8.09,19.281,19.272,0.809]
[1693865086401,7.59,19.281,19.272,0.809]
[1693865086995,7.09,19.281,19.272,0.809]
[1693865088194,0.49961043,19.28,19.272,0.809]
[1693865088397,8.59061043,19.28,19.272,0.809]
[1693865088591,8.091,19.28,19.272,0.809]
[1693865091109,63.09,19.282,19.272,0.809]
[1693865091409,0.81847586,19.281,19.272,0.809]
[1693865091802,8.90847586,19.281,19.272,0.809]
[1693865092403,8.09,19.281,19.272,0.809]
[1693865094808,0.54423832,19.28,19.272,0.809]
[1693865095012,7.59,19.281,19.272,0.809]
[1693865095413,0.60221286,19.28,19.272,0.809]
[1693865095623,7.59,19.281,19.272,0.809]
[1693865096305,0.77865045,19.281,19.272,0.809]
[1693865098400,8.86865045,19.281,19.272,0.809]
[1693865098596,0.77865045,19.281,19.272,0.809]
[1693865098912,0.99398501,19.283,19.272,0.809]
[1693865099115,9.08398501,19.283,19.272,0.809]
[1693865101019,8.09,19.283,19.272,0.809]
[1693865101604,0.50109511,19.282,19.272,0.809]
[1693865101800,8.09,19.282,19.272,0.809]
[1693865102308,8.09,19.283,19.272,0.809]
[1693865110522,55.0,19.282,19.272,0.809]
[1693865110818,8.091,19.28,19.272,0.809]
[1693865112504,8.091,19.281,19.272,0.809]
[1693865119231,153.7428,19.285,19.272,0.809]
[1693865119429,55.69323966,19.284,19.272,0.809]
[1693865119629,55.0,19.284,19.272,0.809]
[1693865120628,63.089,19.284,19.272,0.809]
[1693865121426,0.51647843,19.283,19.272,0.809]
[1693865121623,8.60647843,19.283,19.272,0.809]
[1693865121823,8.09,19.283,19.272,0.809]
[1693865123437,0.53177821,19.282,19.272,0.809]
[1693865125228,8.69618788,19.283,19.272,0.809]
[1693865125938,0.60618788,19.283,19.272,55.809]
[1693865126144,96.7018,19.285,19.272,55.809]
[1693865126331,399.586,19.291,19.272,55.809]
[1693865126532,94.8935,19.289,19.272,55.809]
[1693865126832,21.42358737,19.288,19.272,55.809]
[1693865127940,21.42358737,19.288,19.28,26.92]
[1693865128139,21.42358737,19.288,19.282,0.809]
[1693865128325,28.088,19.288,19.282,0.809]
[1693865128840,28.088,19.288,19.281,0.809]
[1693865129541,0.52500973,19.287,19.281,0.809]
[1693865129723,8.61300973,19.287,19.281,0.809]
[1693865129922,8.088,19.287,19.28,0.809]
[1693865131740,28.088,19.288,19.28,0.809]
[1693865133243,8.088,19.288,19.28,0.809]
[1693865133445,102.9805,19.289,19.28,27.729]
[1693865133940,8.087,19.289,19.28,27.729]
[1693865134724,8.087,19.29,19.28,27.729]
[1693865136026,8.085,19.293,19.28,27.729]
[1693865136237,90.7386,19.295,19.28,27.729]
[1693865136531,8.085,19.294,19.28,27.729]
[1693865138343,90.7386,19.295,19.28,27.729]
[1693865138546,90.7386,19.295,19.281,55.57640274]
[1693865138745,98.8236,19.295,19.285,3.421]
[1693865138946,8.085,19.295,19.285,3.421]
[1693865140548,8.085,19.295,19.285,58.421]
[1693865141138,26.116,19.298,19.285,58.421]
[1693865141346,8.084,19.296,19.285,58.421]
[1693865141548,8.084,19.296,19.285,3.421]
[1693865141740,55.0,19.295,19.285,3.421]
[1693865141931,63.085,19.295,19.285,3.421]
[1693865142133,8.084,19.296,19.285,3.421]
[1693865143244,8.084,19.296,19.285,24.157748]
[1693865143948,8.084,19.296,19.285,3.421]
[1693865145046,8.084,19.298,19.285,30.341]
[1693865145263,103.1763,19.299,19.286,55.0]
[1693865145548,95.0933,19.299,19.292,9.121]
[1693865145733,77.72654098,19.305,19.292,9.121]
[1693865145934,94.7278,19.304,19.293,55.0]
[1693865146133,94.7278,19.304,19.296,3.419]
[1693865147249,94.7278,19.304,19.296,0.808]
[1693865148341,8.081,19.303,19.296,0.808]
[1693865149050,94.7278,19.304,19.296,0.808]
[1693865149741,102.8088,19.304,19.296,0.808]
[1693865150446,94.7278,19.304,19.293,110.0]
[1693865150853,102.8088,19.304,19.296,0.808]
[1693865158555,94.7278,19.304,19.296,0.808]
[1693865161154,94.2278,19.304,19.296,0.808]
[1693865170458,102.3088,19.304,19.295,0.808]
[1693865170654,55.0,19.303,19.291,2.612]
[1693865170958,63.081,19.303,19.292,0.808]
[1693865171556,94.2278,19.304,19.292,0.808]
[1693865171851,63.081,19.303,19.292,0.808]
[1693865172249,26.92,19.3,19.29,0.808]
[1693865172451,26.92,19.3,19.286,0.808]
[1693865172452,8.084,19.296,19.286,0.808]
[1693865172655,8.084,19.296,19.285,0.808]
[1693865172965,26.92,19.3,19.285,0.808]
[1693865172966,8.084,19.297,19.285,0.808]
[1693865173362,8.084,19.297,19.286,20.734058]
[1693865173562,8.084,19.297,19.288,0.808]
[1693865174251,8.083,19.298,19.288,0.808]
[1693865174446,35.003,19.3,19.288,0.808]
[1693865174651,55.0,19.299,19.288,0.808]
[1693865174865,20.0,19.298,19.288,0.808]
[1693865175166,28.083,19.298,19.288,0.808]
[1693865176262,55.0,19.297,19.288,0.808]
[1693865178361,63.084,19.297,19.288,0.808]
[1693865179056,20.0,19.298,19.288,0.808]
[1693865179256,20.0,19.299,19.288,0.808]
[1693865179456,55.0,19.298,19.288,0.808]
[1693865180766,28.083,19.299,19.288,0.808]
[1693865182062,55.0,19.298,19.288,0.808]
[1693865182367,63.083,19.298,19.288,0.808]
[1693865185267,99.8878,19.297,19.285,2.613]
[1693865185467,8.085,19.295,19.287,0.808]
[1693865188671,8.085,19.295,19.284,20.737167]
[1693865188869,63.084,19.296,19.287,0.808]
[1693865189061,55.0,19.296,19.287,0.808]
[1693865191768,107.9718,19.297,19.287,0.808]
[1693865192476,99.8878,19.297,19.287,0.808]
[1693865193279,107.9718,19.297,19.287,0.808]
[1693865197078,55.0,19.296,19.287,0.808]
[1693865198279,63.084,19.296,19.287,0.808]
[1693865198675,55.0,19.296,19.287,0.808]
[1693865198882,55.0,19.296,19.287,3.421]
[1693865204686,99.8878,19.297,19.287,3.421]
[1693865204878,99.8878,19.297,19.288,1.57640274]
[1693865205188,8.081,19.303,19.29,9.122]
[1693865205375,20.54821222,19.302,19.29,9.122]
[1693865205576,20.0,19.302,19.29,9.122]
[1693865205774,28.082,19.302,19.29,9.122]
[1693865206178,150.8955,19.301,19.29,9.122]
[1693865206471,20.0,19.3,19.29,9.122]
[1693865206870,28.083,19.3,19.29,9.122]
[1693865207173,54.973,19.3,19.29,9.122]
[1693865207982,54.973,19.3,19.29,3.42]
[1693865209783,28.083,19.3,19.29,3.42]
[1693865209984,83.076,19.308,19.29,30.31]
[1693865210293,97.1087,19.304,19.29,30.31]
[1693865210589,0.88112797,19.303,19.294,0.808]
[1693865210794,8.96212797,19.303,19.292,0.808]
[1693865211087,8.081,19.303,19.292,0.808]
[1693865211285,8.082,19.301,19.292,0.808]
[1693865211496,55.0,19.3,19.292,0.808]
[1693865213774,8.082,19.3,19.29,20.731153]
[1693865214098,34.972,19.3,19.29,20.731153]
[1693865214880,26.89,19.3,19.29,21.539153]
[1693865215080,123.2177,19.304,19.291,1.3318076]
[1693865215282,8.082,19.302,19.294,0.808]
[1693865215478,55.0,19.301,19.294,0.808]
[1693865215692,63.082,19.301,19.294,0.808]
[1693865215901,63.082,19.301,19.293,0.808]
[1693865216488,0.60711852,19.3,19.293,0.808]
[1693865216888,63.082,19.301,19.293,0.808]
[1693865217199,55.0,19.301,19.293,0.808]
[1693865217700,0.93463658,19.3,19.293,0.808]
[1693865217902,1.22573317,19.301,19.293,0.808]
[1693865220706,55.0,19.302,19.293,0.808]
[1693865220882,0.99001816,19.302,19.293,0.808]
[1693865221505,0.99001816,19.3,19.293,0.808]
[1693865221684,55.99001816,19.3,19.293,0.808]
[1693865221890,64.07201816,19.3,19.293,0.808]
[1693865222085,63.082,19.3,19.293,0.808]
[1693865222291,55.0,19.3,19.293,0.808]
[1693865223509,55.0,19.3,19.293,3.42]
[1693865223699,55.0,19.301,19.293,3.42]
[1693865224703,0.99111783,19.301,19.293,3.42]
[1693865229495,9.07311783,19.301,19.293,0.808]
[1693865229896,0.99111783,19.301,19.293,0.808]
[1693865231425,56.42358737,19.302,19.293,0.808]
[1693865233204,9.50558737,19.302,19.293,0.808]
[1693865233407,1.42358737,19.302,19.293,0.808]
[1693865239527,1.42358737,19.303,19.293,0.808]
[1693865239823,56.42358737,19.303,19.293,0.808]
[1693865245829,55.0,19.303,19.293,0.808]
[1693865246025,55.0,19.303,19.293,1.9066943]
[1693865246621,55.0,19.303,19.293,0.808]
[1693865247020,55.0,19.303,19.293,1.96637352]
[1693865247316,55.0,19.303,19.293,0.808]
[1693865247717,0.55314655,19.302,19.293,0.808]
[1693865249024,55.0,19.303,19.293,1.85908352]
[1693865249332,0.56738425,19.302,19.293,0.808]
[1693865253931,0.56738425,19.302,19.293,1.88904698]
[1693865254642,0.56738425,19.302,19.293,0.808]
[1693865254821,0.56738425,19.302,19.293,1.88709578]
[1693865255625,0.56738425,19.302,19.293,0.808]
[1693865256842,1.13773132,19.303,19.293,2.38440274]
[1693865271847,64.21873132,19.303,19.293,2.38440274]
[1693865272147,64.21873132,19.303,19.293,0.808]
[1693865273950,9.21873132,19.303,19.293,0.808]
[1693865274153,1.13773132,19.303,19.293,2.38440274]
[1693865274537,56.13773132,19.303,19.293,2.38440274]
[1693865278338,56.13773132,19.303,19.293,0.808]
[1693865278540,1.13773132,19.303,19.293,2.38440274]
[1693865280153,9.21873132,19.303,19.293,2.38440274]
[1693865280651,9.21873132,19.303,19.293,0.808]
[1693865281152,1.13773132,19.303,19.293,0.808]
[1693865281456,64.21873132,19.303,19.293,2.38440274]
[1693865281757,64.21873132,19.303,19.293,0.808]
[1693865282854,56.13773132,19.303,19.293,0.808]
[1693865283362,56.13773132,19.303,19.293,2.38440274]
[1693865283655,56.13773132,19.303,19.293,0.808]
[1693865289964,56.13773132,19.303,19.293,2.38440274]
[1693865290166,56.13773132,19.303,19.293,0.808]
[1693865299465,1.13773132,19.303,19.293,0.808]
[1693865299869,1.13773132,19.303,19.293,2.38440274]
[1693865300873,56.13773132,19.303,19.293,2.38440274]
[1693865302068,56.13773132,19.303,19.293,0.808]
[1693865302471,1.13773132,19.303,19.293,0.808]
[1693865302667,1.13773132,19.303,19.293,4.32902299]
[1693865305583,1.13773132,19.303,19.293,59.32902299]
[1693865305770,1.42358737,19.308,19.293,59.32902299]
[1693865305970,76.42358737,19.308,19.293,59.32902299]
[1693865306477,21.42358737,19.308,19.293,59.32902299]
[1693865306979,29.50258737,19.308,19.293,59.32902299]
[1693865313482,55.0,19.307,19.293,4.32902299]
[1693865313673,1.42358737,19.306,19.293,4.32902299]
[1693865314480,9.50358737,19.306,19.293,4.32902299]
[1693865315877,1.42358737,19.306,19.293,59.32902299]
[1693865316086,9.50358737,19.307,19.293,59.32902299]
[1693865321273,9.50358737,19.307,19.293,4.32902299]
[1693865322883,9.50358737,19.307,19.293,59.32902299]
[1693865330279,9.50358737,19.307,19.293,4.32902299]
[1693865330481,55.0,19.306,19.293,4.32902299]
[1693865330783,34.192,19.303,19.293,4.32902299]
[1693865331096,8.083,19.3,19.293,4.32902299]
[1693865331978,8.081,19.304,19.293,4.32902299]
[1693865332380,1.11488216,19.303,19.293,4.32902299]
[1693865332593,9.19588216,19.303,19.293,4.32902299]
[1693865332895,8.081,19.303,19.293,4.32902299]
[1693865333395,0.95441409,19.302,19.293,4.32902299]
[1693865336005,8.081,19.303,19.293,4.32902299]
[1693865336188,8.081,19.305,19.293,4.32902299]
[1693865336387,56.42358737,19.304,19.293,4.32902299]
[1693865337402,64.50458737,19.304,19.293,4.32902299]
[1693865343707,9.50458737,19.304,19.293,4.32902299]
[1693865346488,8.081,19.304,19.293,4.32902299]
[1693865346695,1.42358737,19.303,19.293,4.32902299]
[1693865346898,9.50458737,19.303,19.293,4.32902299]
[1693865347102,8.081,19.303,19.293,4.32902299]
[1693865347497,26.106,19.306,19.293,4.32902299]
[1693865347705,8.081,19.304,19.293,4.32902299]
[1693865348009,1.42358737,19.303,19.293,4.32902299]
[1693865348607,1.42358737,19.303,19.293,59.32902299]
[1693865348809,8.081,19.303,19.293,59.32902299]
[1693865356002,0.586404,19.305,19.293,59.32902299]
[1693865356310,1.42358737,19.305,19.293,59.32902299]
[1693865357311,8.08,19.305,19.293,59.32902299]
[1693865357513,1.42358737,19.304,19.293,59.32902299]
[1693865358211,9.50458737,19.304,19.293,59.32902299]
[1693865358415,8.081,19.304,19.293,59.32902299]
[1693865370118,8.081,19.304,19.293,4.32902299]
[1693865370310,1.04102351,19.303,19.293,4.32902299]
[1693865370636,8.082,19.3,19.293,4.32902299]
[1693865371909,8.082,19.302,19.293,4.32902299]
[1693865382637,26.89,19.3,19.293,3.52102299]
[1693865382934,91.2,19.298,19.289,0.808]
[1693865383234,8.085,19.295,19.287,0.808]
[1693865386927,0.66969699,19.294,19.287,0.808]
[1693865387124,8.085,19.293,19.287,0.808]
[1693865391041,8.085,19.293,19.286,4.32902299]
[1693865391240,8.085,19.293,19.286,0.808]
[1693865401562,8.085,19.295,19.286,0.808]
[1693865401762,1.42358737,19.298,19.286,4.32902299]
[1693865401967,21.42358737,19.298,19.286,59.32902299]
[1693865402171,20.0,19.298,19.286,59.32902299]
[1693865402667,0.50324215,19.297,19.286,59.32902299]
[1693865403169,1.42358737,19.304,19.294,9.121]
[1693865403364,9.50458737,19.304,19.294,9.121]
[1693865406172,1.42358737,19.304,19.294,9.121]
[1693865406971,9.50458737,19.304,19.294,9.121]
[1693865407767,1.42358737,19.304,19.294,9.121]
[1693865407967,1.42358737,19.305,19.295,55.0]
[1693865408175,1.42358737,19.305,19.298,3.419]
[1693865408363,1.42358737,19.309,19.298,3.419]
[1693865408569,21.42358737,19.309,19.298,3.419]
[1693865409675,8.08,19.307,19.298,3.419]
[1693865409882,1.42358737,19.306,19.298,3.419]
[1693865410174,9.50358737,19.306,19.298,3.419]
[1693865412776,1.42358737,19.306,19.298,3.419]
[1693865413162,9.50358737,19.306,19.298,3.419]
[1693865416364,9.50358737,19.306,19.298,0.808]
[1693865427984,35.60858737,19.306,19.297,0.808]
[1693865435487,9.50358737,19.306,19.297,0.808]
[1693865460602,9.50358737,19.306,19.294,1.57640274]
[1693865460802,9.50358737,19.306,19.296,0.808]
[1693865462391,9.50358737,19.306,19.296,2.38440274]
[1693865462796,9.50358737,19.306,19.296,0.808]
[1693865463409,8.081,19.303,19.296,0.808]
[1693865463609,1.42358737,19.302,19.296,0.808]
[1693865463796,1.42358737,19.303,19.296,0.808]
[1693865464308,9.50458737,19.303,19.296,0.808]
[1693865469314,9.50458737,19.303,19.295,0.808]
[1693865471619,1.42358737,19.303,19.295,0.808]
[1693865471823,1.42358737,19.304,19.295,0.808]
[1693865472023,1.42358737,19.304,19.295,2.38440274]
[1693865472212,9.50458737,19.304,19.295,2.38440274]
[1693865476228,9.50458737,19.304,19.295,0.808]
[1693865476626,9.50458737,19.304,19.295,2.38440274]
[1693865477513,9.50458737,19.304,19.295,0.808]
[1693865483331,9.50458737,19.304,19.294,0.808]
[1693865483721,9.50458737,19.304,19.293,0.808]
[1693865483919,55.0,19.303,19.292,2.38440274]
[1693865484122,8.083,19.3,19.292,0.808]
[1693865484322,1.42358737,19.299,19.292,0.808]
[1693865484521,9.50658737,19.299,19.292,0.808]
[1693865486043,1.42358737,19.299,19.292,3.42]
[1693865486335,1.42358737,19.3,19.292,3.42]
[1693865486522,9.50658737,19.3,19.292,3.42]
[1693865489041,9.50658737,19.3,19.292,0.808]
[1693865490040,1.42358737,19.3,19.292,0.808]
[1693865491534,9.50658737,19.3,19.292,0.808]
[1693865492326,75.0,19.299,19.282,2.613]
[1693865492531,75.0,19.299,19.284,0.808]
[1693865492532,34.207,19.294,19.284,0.808]
[1693865492834,8.087,19.29,19.284,0.808]
[1693865493738,8.087,19.29,19.284,4.32902299]
[1693865495340,8.086,19.291,19.284,4.32902299]
[1693865496229,1.42358737,19.293,19.284,4.32902299]
[1693865496545,64.50858737,19.293,19.284,4.32902299]
[1693865503638,1.42358737,19.293,19.284,4.32902299]
[1693865503839,98.3638,19.294,19.284,4.32902299]
[1693865505341,106.4488,19.294,19.284,4.32902299]
[1693865508039,98.3638,19.294,19.284,4.32902299]
[1693865510148,106.4488,19.294,19.284,4.32902299]
[1693865512951,0.80095484,19.293,19.284,4.32902299]
[1693865513151,8.086,19.292,19.284,4.32902299]
[1693865515659,8.085,19.293,19.284,4.32902299]
[1693865518661,55.0,19.292,19.284,4.32902299]
[1693865518863,8.086,19.291,19.284,4.32902299]
[1693865519566,63.086,19.292,19.284,4.32902299]
[1693865521065,63.086,19.292,19.284,0.808]
[1693865523062,63.086,19.292,19.284,4.32902299]
[1693865531059,0.54515317,19.291,19.284,4.32902299]
[1693865531254,8.63115317,19.291,19.284,4.32902299]
[1693865531458,8.086,19.291,19.284,4.32902299]
[1693865539276,55.0,19.292,19.284,4.32902299]
[1693865539487,63.086,19.292,19.284,4.32902299]
[1693865540677,98.3638,19.294,19.284,4.32902299]
[1693865542179,106.4488,19.294,19.284,4.32902299]
[1693865542485,55.0,19.293,19.284,4.32902299]
[1693865545183,63.085,19.293,19.284,4.32902299]
[1693865546391,98.3638,19.294,19.284,4.32902299]
[1693865546585,46.115,19.299,19.284,59.32902299]
[1693865546779,1.42358737,19.298,19.284,59.32902299]
[1693865547391,8.084,19.297,19.284,59.32902299]
[1693865547593,1.42358737,19.296,19.284,59.32902299]
[1693865548678,9.50758737,19.296,19.284,59.32902299]
[1693865548992,8.084,19.296,19.284,59.32902299]
[1693865552592,1.42358737,19.298,19.284,59.32902299]
[1693865552898,8.084,19.297,19.284,59.32902299]
[1693865553197,1.42358737,19.296,19.284,59.32902299]
[1693865553385,9.50758737,19.296,19.284,59.32902299]
[1693865553694,8.084,19.296,19.284,59.32902299]
[1693865564190,8.084,19.296,19.284,4.32902299]
[1693865564396,0.82862319,19.295,19.284,4.32902299]
[1693865564590,8.086,19.292,19.284,4.32902299]
[1693865567806,8.086,19.292,19.284,0.808]
[1693865568386,8.086,19.292,19.282,3.52102299]
[1693865569494,8.086,19.292,19.283,0.808]
[1693865571708,8.086,19.292,19.284,3.52102299]
[1693865571908,8.086,19.292,19.285,0.808]
[1693865581811,55.0,19.291,19.282,3.52102299]
[1693865582001,8.087,19.289,19.284,0.808]
[1693865582407,55.0,19.288,19.283,0.808]
[1693865582599,8.088,19.287,19.283,0.808]
[1693865582915,8.088,19.287,19.282,3.52102299]
[1693865583115,8.088,19.287,19.282,0.809]
[1693865583908,55.0,19.286,19.282,0.809]
[1693865584315,8.087,19.288,19.282,0.809]
[1693865584625,55.0,19.287,19.282,0.809]
[1693865584829,63.088,19.287,19.282,0.809]
[1693865587112,63.088,19.287,19.281,3.52102299]
[1693865587421,63.088,19.287,19.278,3.52102299]
[1693865587723,63.088,19.287,19.276,0.809]
[1693865587913,0.53711925,19.286,19.276,0.809]
[1693865588116,8.09,19.283,19.276,0.809]
[1693865591124,8.09,19.283,19.275,0.809]
[1693865591321,26.89,19.28,19.275,0.809]
[1693865591728,55.0,19.279,19.275,0.809]
[1693865594621,63.091,19.279,19.274,0.809]
[1693865597026,63.091,19.279,19.273,0.809]
[1693865597415,55.0,19.279,19.273,0.809]
[1693865598026,8.09,19.283,19.273,0.809]
[1693865598215,8.09,19.283,19.274,3.52102299]
[1693865598419,55.0,19.282,19.276,0.809]
[1693865599219,55.0,19.282,19.276,4.33002299]
[1693865599420,55.0,19.282,19.276,0.809]
[1693865600230,63.09,19.282,19.276,0.809]
[1693865600623,55.0,19.282,19.276,0.809]
[1693865604134,63.09,19.282,19.276,0.809]
[1693865604429,8.089,19.284,19.276,4.33002299]
[1693865605017,95.2354,19.286,19.276,4.33002299]
[1693865605438,8.59961604,19.285,19.276,4.33002299]
[1693865605621,0.51061604,19.285,19.276,4.33002299]
[1693865606023,26.122,19.294,19.276,59.33002299]
[1693865606024,1.42358737,19.289,19.276,59.33002299]
[1693865606235,1.42358737,19.293,19.28,26.89]
[1693865606544,9.50858737,19.293,19.283,3.421]
[1693865607048,9.50858737,19.293,19.284,3.52102299]
[1693865607344,55.0,19.292,19.286,0.808]
[1693865607541,1.42358737,19.291,19.286,0.808]
[1693865612226,63.086,19.292,19.286,0.808]
[1693865612621,0.57527149,19.291,19.286,0.808]
[1693865612833,93.6155,19.294,19.286,0.808]
[1693865613035,0.69730969,19.293,19.286,0.808]
[1693865613525,1.42358737,19.296,19.286,0.808]
[1693865613722,1.42358737,19.293,19.286,0.808]
[1693865615627,9.50858737,19.293,19.286,0.808]
[1693865617836,1.42358737,19.293,19.286,0.808]
[1693865620642,9.50858737,19.293,19.286,0.808]
[1693865626736,1.42358737,19.293,19.286,0.808]
[1693865632454,8.085,19.293,19.286,0.808]
[1693865632644,1.42358737,19.292,19.286,0.808]
[1693865635949,9.50958737,19.292,19.286,0.808]
[1693865636255,8.085,19.294,19.286,0.808]
[1693865636450,1.42358737,19.293,19.286,0.808]
[1693865642555,8.086,19.293,19.286,0.808]
[1693865642757,1.42358737,19.292,19.286,0.808]
[1693865642950,9.50958737,19.292,19.286,0.808]
[1693865643261,8.085,19.293,19.286,0.808]
[1693865643467,1.42358737,19.292,19.286,0.808]
[1693865646651,1.42358737,19.297,19.286,0.808]
[1693865646853,1.42358737,19.297,19.286,4.32902299]
[1693865647054,8.085,19.295,19.286,4.32902299]
[1693865647355,9.50858737,19.294,19.286,4.32902299]
[1693865647556,9.50858737,19.294,19.286,0.808]
[1693865647957,8.085,19.294,19.286,4.32902299]
[1693865648273,8.085,19.295,19.286,4.32902299]
[1693865648474,1.42358737,19.294,19.286,4.32902299]
[1693865648969,1.42358737,19.297,19.286,4.32902299]
[1693865649759,9.50758737,19.297,19.286,4.32902299]
[1693865652369,9.50758737,19.297,19.286,0.808]
[1693865652677,9.50758737,19.297,19.286,4.32902299]
[1693865653260,9.50758737,19.297,19.286,0.808]
[1693865653674,9.50758737,19.297,19.286,4.32902299]
[1693865653865,9.50758737,19.297,19.286,0.808]
[1693865657276,9.50758737,19.297,19.286,55.808]
[1693865657778,9.50758737,19.297,19.286,111.616]
[1693865657972,9.50758737,19.297,19.287,3.52102299]
[1693865658279,9.50758737,19.297,19.29,3.42]
[1693865663882,9.50758737,19.297,19.29,0.808]
[1693865665478,1.42358737,19.297,19.29,3.42]
[1693865665690,8.083,19.298,19.291,3.52102299]
[1693865665872,8.083,19.298,19.293,0.808]
[1693865667065,8.083,19.299,19.293,0.808]
[1693865670983,1.34297541,19.302,19.293,3.42]
[1693865671285,64.42497541,19.302,19.293,3.42]
[1693865674480,56.34297541,19.302,19.293,3.42]
[1693865674685,1.42358737,19.304,19.293,3.42]
[1693865674871,56.42358737,19.304,19.293,3.42]
[1693865675577,8.082,19.302,19.293,3.42]
[1693865675775,1.42358737,19.301,19.293,3.42]